Cogmind - Beta 13 @@@ ROGUE MODE // 2024.04.19 @ 11:51:39 Player: SovietPaperclip Result: Destroyed by 3R-LL9(R) with Subdweller Beam Cannon Performance ------------- Evolutions (0) 0 Regions Visited (3) 600 Robots Destroyed (29) 145 Value Destroyed (548) 548 Prototype IDs (0) 0 Alien Tech Used (0) 0 Bonus (170) 170 TOTAL SCORE: 1463 Bonus ------- Follower Combat Kills 170 Cogmind --------- Core Integrity 0/250 Matter 290/300 Energy 239/250 System Corruption 0% Temperature Cool (15) Movement Rolling (215) Ox9 Location -10/Subcaves Parts ------- > --- POWER (1) -------- Ion Engine > --- PROPULSION (2) --- Wheel > --- UTILITY (2) ------ Improved Heat Sink Huge Storage Unit > --- WEAPON (2) ------- Beamcaster Makeshift Spear > --- INVENTORY (25) --- Light Nuclear Core Makeshift Power Source Wheel Wheel Improved Heat Sink High-capacity Matter Pod (200) Structural Scanner Hacking Suite Subdweller Beam Cannon Assault Rifle Grenade Launcher Peak State ------------ > --- POWER ------------ Ion Engine > --- PROPULSION ------- Wheel > --- UTILITY ---------- Improved Heat Sink Huge Storage Unit > --- WEAPON ----------- Beamcaster Makeshift Spear > --- INVENTORY -------- Light Nuclear Core Makeshift Power Source Wheel Wheel Improved Heat Sink High-capacity Matter Pod Structural Scanner Hacking Suite Subdweller Beam Cannon Assault Rifle Grenade Launcher [Rating: 17] Favorites ----------- Power Ion Engine Engine Ion Engine Propulsion Light Treads Treads Light Treads Wheel Wheel Utility Small Storage Unit Device Improved Heat Sink Storage Small Storage Unit Weapon Assault Rifle Energy Gun EM Pulse Gun Energy Cannon Beam Cannon Ballistic Gun Assault Rifle Piercing Weapon Makeshift Spear Build | -11 -10 -10 -10 ------- Run | Yrd Mat Min Sub Slots Evolved . | . . . . Power . | . . . . Propulsion . | . . . . Utility . | . . . . Weapon . | . . . . Parts Attached 15 | 6 . 7 2 Power 2 | 1 . 1 . Engine 2 | 1 . 1 . Core . | . . . . Reactor . | . . . . Propulsion 4 | 2 . 2 . Treads 2 | 2 . . . Leg . | . . . . Wheel 2 | . . 2 . Hover . | . . . . Flight . | . . . . Utility 3 | 1 . 2 . Device 1 | . . 1 . Storage 2 | 1 . 1 . Processor . | . . . . Hackware . | . . . . Protection . | . . . . Artifact . | . . . . Weapon 6 | 2 . 2 2 Energy Gun 2 | 1 . . 1 Energy Cannon 1 | . . 1 . Ballistic Gun 1 | 1 . . . Ballistic Cannon . | . . . . Launcher . | . . . . Special Weapon . | . . . . Impact Weapon . | . . . . Slashing Weapon . | . . . . Piercing Weapon 2 | . . 1 1 Special Melee Weapon . | . . . . Unidentified Prototypes . | . . . . Parts Lost 5 | . 1 2 2 Power 1 | . . 1 . Propulsion 2 | . . 1 1 Utility . | . . . . Weapon 2 | . 1 . 1 Highest Loss Streak 2 | . 1 2 2 To Critical Strikes . | . . . . Average Slot Usage (%) 91 | . 84 94 98 Engine 14 | . 14 14 14 Treads 18 | . 28 17 . Wheel 6 | . . 5 26 Device 9 | . . 14 14 Storage 14 | . 14 14 14 Energy Gun 6 | . 13 . 14 Energy Cannon 9 | . . 14 12 Ballistic Gun 11 | . 14 13 . Naked Turns . | . . . . Heaviest Build 94 | 14 14 91 94 Greatest Support 40 | 40 40 40 20 Greatest Overweight (x) 9 | . . 9 4 Average Overweight (x) 1 | . . 1 4 Largest Inventory Capacity 25 | 8 8 25 25 Average Capacity 12 | 7 8 13 25 Most Carried 12 | 1 8 11 12 Average Carried 7 | . 5 7 11 Final Capacity 25 | 8 8 25 25 Final Carried 11 | 1 8 11 11 Class Distribution -------------------- 87% | Mutant 12% | Scavenger-Mutant Dominant Class ---------------- Mutant | -10/Materials Mutant | -10/Mines Scavenger-Mutant | -10/Subcaves Resources | -11 -10 -10 -10 ----------- Run | Yrd Mat Min Sub Matter Collected 692 | 165 346 171 10 Remotely . | . . . . Salvage Created 882 | . 483 367 32 Parts 67 | . 35 29 3 Haulers Intercepted 1 | . 1 . . Recyclers Shooed . | . . . . Parts Field Recycled . | . . . . Retrieved Matter . | . . . . Parts Self-Destructed . | . . . . Prevented . | . . . . Kills | -11 -10 -10 -10 ------- Run | Yrd Mat Min Sub Combat Hostiles Destroyed 16 | . 6 9 1 Guns 7 | . 4 3 . Cannons 7 | . . 6 1 AOE 2 | . 2 . . Classes Destroyed 10 | . 8 1 1 Worker 3 | . 2 1 . Builder 4 | . 3 1 . Tunneler 2 | . . 2 . Hauler 1 | . 1 . . Recycler 1 | . 1 . . Operator 1 | . 1 . . Watcher 1 | . 1 . . Swarmer 6 | . 3 3 . Grunt 9 | . 3 6 . Subdweller 1 | . . . 1 Best Kill Streak 9 | . 9 3 1 Combat Bots Only 3 | . 3 3 1 Max Kills in Single Turn 3 | . 3 1 1 Gunslinging . | . . . . Exploded 2 | . 2 . . Melee . | . . . . Uniques/NPCs Destroyed . | . . . . Combat | -11 -10 -10 -10 -------- Run | Yrd Mat Min Sub Hostile Shots Fired 93 | . 30 45 18 Missed 24 | . 7 11 6 Damage Taken 943 | . 204 459 280 Core 275 | . 37 120 118 Absorbed by Shields . | . . . . Core Remaining (%) 100 | 100 . . . Volleys Fired 68 | . 26 29 13 Largest 2 | . 2 2 2 Hottest 135 | . 60 80 135 Shots Fired 127 | . 46 58 23 Gun 88 | . 46 29 13 Cannon 39 | . . 29 10 Launcher . | . . . . Special . | . . . . Kinetic 55 | . 26 29 . Thermal 52 | . . 29 23 Explosive . | . . . . Electromagnetic 20 | . 20 . . Robot Hit Streak 14 | . 4 9 14 Robot Miss Streak 4 | . 4 4 . Penetration Max . | . . . . Secondary Targets . | . . . . Shots Hit Robots 70 | . 23 32 15 Core Hits 37 | . 17 17 3 Critical Kills . | . . . . Critical Parts Destroyed . | . . . . Critical Strikes . | . . . . Melee Attacks 7 | . . 4 3 Impact . | . . . . Slashing . | . . . . Piercing 7 | . . 4 3 Sneak Attacks 3 | . . 3 . Combat Hostiles . | . . . . Follow-up Attacks . | . . . . Damage Inflicted 1412 | . 469 626 317 Guns 729 | . 362 197 170 Cannons 350 | . . 246 104 Explosions 107 | . 107 . . Melee 226 | . . 183 43 Ramming . | . . . . Kinetic 357 | . 160 197 . Thermal 627 | . 107 246 274 Explosive . | . . . . Electromagnetic 202 | . 202 . . Impact . | . . . . Slashing . | . . . . Piercing 226 | . . 183 43 Highest Corruption . | . . . . Average Corruption . | . . . . Corruption Purged . | . . . . Corruption Blocked . | . . . . Overload Shots . | . . . . Overflow Damage 27 | . . 27 . Projectiles . | . . . . Explosions . | . . . . Melee 27 | . . 27 . Knockbacks . | . . . . Impact . | . . . . Kinetic . | . . . . Secondary . | . . . . Self-Inflicted Damage . | . . . . Shots . | . . . . Rammed . | . . . . Targets Rammed . | . . . . Kicked . | . . . . Crushed . | . . . . Highest Temperature 33 | . 33 2 . Average Temperature 14 | . 22 1 . Received Heat Transfer 372 | . 51 237 84 Siege Activations . | . . . . Robots Corrupted . | . . . . Combat Hostiles . | . . . . Parts Fried 1 | . 1 . . Impact Corruptions . | . . . . Robots Melted . | . . . . Combat Hostiles . | . . . . Parts Melted 2 | . . 2 . Heat Transferred 1186 | . 150 518 518 Parts Sabotaged . | . . . . Parts Stolen . | . . . . Parts Stripped . | . . . . Power Chain Reactions 1 | . 1 . . Alert | -11 -10 -10 -10 ------- Run | Yrd Mat Min Sub Peak Influence 193 | . 173 193 . Initial 25 | . . 25 . Average 70 | . 74 73 . Maximum Alert Level . | . . . . Low Security (%) 100 | 100 100 100 . Level 1 . | . . . . Level 2 . | . . . . Level 3 . | . . . . Level 4 . | . . . . Level 5 . | . . . . High Security . | . . . . Max Security . | . . . . Squads Dispatched 1 | . 1 . . Investigation . | . . . . Extermination . | . . . . Reinforcement 1 | . 1 . . Assault . | . . . . Garrison . | . . . . Intercept . | . . . . Searches Triggered . | . . . . Construction Impeded . | . . . . Haulers Reinforced . | . . . . Active Scanning Responses . | . . . . Cargo Convoy Interrupts . | . . . . Stealth | -11 -10 -10 -10 --------- Run | Yrd Mat Min Sub Distress Signals 1 | . 1 . . Communications Jammed . | . . . . Distress Signals . | . . . . Times Spotted 28 | . 9 16 3 Peak Tracking Total 4 | . 3 4 2 Tactical Retreats 1 | . . 1 . Traps | -11 -10 -10 -10 ------- Run | Yrd Mat Min Sub Traps Triggered . | . . . . Indirectly . | . . . . Trap Hack Attempts . | . . . . Triggered . | . . . . Disarmed . | . . . . Reprogrammed . | . . . . Reused . | . . . . Traps Extracted . | . . . . Installed . | . . . . Triggered . | . . . . Machines | -11 -10 -10 -10 ---------- Run | Yrd Mat Min Sub Machines Disabled . | . . . . Max in Single Turn . | . . . . Machines Repaired . | . . . . Machines Dismantled . | . . . . Machines Sabotaged . | . . . . Overloaded Fab Kills . | . . . . Hacking | -11 -10 -10 -10 --------- Run | Yrd Mat Min Sub Machines Accessed 2 | . 2 . . Terminals 2 | . 2 . . Fabricators . | . . . . Repair Stations . | . . . . Recycling Units . | . . . . Scanalyzers . | . . . . Garrison Access . | . . . . Total Hacks 6 | . 6 . . Successful 2 | . 2 . . Failed 4 | . 4 . . Catastrophic 1 | . 1 . . Database Lockouts . | . . . . Manual 4 | . 4 . . Terminals 6 | . 6 . . Fabricators . | . . . . Repair Stations . | . . . . Recycling Units . | . . . . Scanalyzers . | . . . . Garrison Access . | . . . . Terminal Hacks 1 | . 1 . . Part Schematic 1 | . 1 . . Fabricator Hacks . | . . . . Repair Station Hacks . | . . . . Recycling Unit Hacks . | . . . . Scanalyzer . | . . . . Garrison Access Hacks . | . . . . Unauthorized Hacks 1 | . 1 . . Terminals 1 | . 1 . . Botnet 1 | . 1 . . Fabricators . | . . . . Repair Stations . | . . . . Recycling Units . | . . . . Scanalyzers . | . . . . Garrison Access . | . . . . Data Cores Recovered 1 | . 1 . . Used 1 | . 1 . . Hacking Detections 2 | . 2 . . Full Trace Events . | . . . . Feedback Events . | . . . . Feedback Blocked . | . . . . Robot Schematics Acquired . | . . . . Robots Built . | . . . . Authchips . | . . . . Time . | . . . . Total Robot Build Rating . | . . . . Part Schematics Acquired 1 | . 1 . . Parts Built . | . . . . Authchips . | . . . . Time . | . . . . Total Part Build Rating . | . . . . Parts Repaired . | . . . . Time . | . . . . Parts Recycled . | . . . . Recycled Matter . | . . . . Retrieved Matter . | . . . . Retrieved Components . | . . . . Parts Scanalyzed . | . . . . Part Schematics Acquired . | . . . . Parts Damaged . | . . . . Bothacking | -11 -10 -10 -10 ------------ Run | Yrd Mat Min Sub Used RIF Installer . | . . . . Robots Hacked . | . . . . Non-combat . | . . . . Combat . | . . . . Robot Hacks Applied . | . . . . Relay Couplers Released . | . . . . Fabnet Peak Effective % . | . . . . Robots Rewired . | . . . . Allies Hacked . | . . . . Hacks Repelled . | . . . . Allies | -11 -10 -10 -10 -------- Run | Yrd Mat Min Sub Total Allies 5 | . . 5 . Largest Group 5 | . . 5 . Highest-Rated Group 89 | . . 89 . Highest-Rated Ally 31 | . . 31 . Total Orders . | . . . . Ally Attacks 43 | . . 43 . Total Damage 631 | . . 631 . Kills 6 | . . 6 . Allies Corrupted . | . . . . Allies Melted . | . . . . Intel | -11 -10 -10 -10 ------- Run | Yrd Mat Min Sub Robot Analysis Total . | . . . . Derelict Logs Recovered 1 | . . 1 . Drone Launches . | . . . . Drone Recoveries . | . . . . Exploration | -11 -10 -10 -10 ------------- Run | Yrd Mat Min Sub Turns Passed 1891 | 78 564 993 256 Spaces Moved 962 | 44 297 475 146 Core 1 | 1 . . . Treads 682 | 43 297 342 . Legs . | . . . . Wheels 279 | . . 133 146 Hover . | . . . . Flight . | . . . . Fastest Speed 50 | 50 160 95 140 Average Speed 159 | 157 160 164 140 Slowest Speed 215 | 160 160 215 140 Overloaded Moves . | . . . . Propulsion Burnouts . | . . . . Robots Hopped . | . . . . Cave-ins Triggered . | . . . . Exploration Rate (%) 35 | 4 58 72 9 Regions Visited 3 Branch Regions 2 Pre-discovered Areas 2 | . . 2 . Known Exits Taken . | . . . . Unknown Exits Taken 3 | 1 1 1 . Scrap Searched 3 | . . 2 1 Spaces Dug 5 | . . . 5 Terrain Destroyed 8 | . 3 . 5 Melee . | . . . . Projectile 5 | . . . 5 AOE 3 | . 3 . . Terrain Rammed . | . . . . Walls Destroyed . | . . . . Machines Disabled . | . . . . Actions | -11 -10 -10 -10 --------- Run | Yrd Mat Min Sub Total 1187 | 50 340 624 173 Wait 120 | . 11 101 8 Move 959 | 43 296 474 146 Hop . | . . . . Pick Up 16 | 1 7 7 1 Fast Attach 8 | 6 . 2 . Attach 4 | . . 3 1 Detach . | . . . . Swap 3 | . . 2 1 Drop 2 | . . 2 . Fire 68 | . 26 29 13 Melee 7 | . . 4 3 Ram . | . . . . Kick . | . . . . Crush . | . . . . Escape Stasis . | . . . . Rewire . | . . . . Trap . | . . . . Miscellaneous . | . . . . Route ------- -11/Scrapyard -10/Materials (discovered 3 exits: [*Mat x2] / [*Min]) -10/Mines (discovered 2 exits: [*Mat] / [*Sub]) -10/Subcaves History --------- Turn | Location | Event 31 | -11/Scrapyard | Discovered new exit (range 15) 79 | -11/Scrapyard | Entered Materials 254 | -10/Materials | Discovered new exit (range 16) 308 | -10/Materials | Build established: Mutant 374 | -10/Materials | Discovered new exit (range 8) 494 | -10/Materials | Discovered new exit (range 16) 643 | -10/Materials | Entered Mines 655 | -10/Mines | Assisted by bots powering up and referring to "LRC-V3" 802 | -10/Mines | Discovered new exit (range 7) 1055 | -10/Mines | Lost 4 allies 1220 | -10/Mines | Core integrity fell below 50% 1328 | -10/Mines | A weapon hastily lodged in a ceiling crevice suddenly fell to the ground 1445 | -10/Mines | Learned location of Storage (-8) 1609 | -10/Mines | Discovered new exit (range 3) 1636 | -10/Mines | Entered Subcaves 1729 | -10/Subcaves | Ambushed by Subdweller buried in earth 1889 | -10/Subcaves | Core integrity fell below 20% 1892 | -10/Subcaves | Destroyed by 3R-LL9(R) with Subdweller Beam Cannon Last Messages --------------- 01621_ Destroyed Mining Laser. 01623_ Sneak attack on T-07 Excavator. 01623_ T-07 Excavator destroyed. 01627_ Acquired Wheel. 01630_ Acquired 16 matter. LOCATION=UNKNOWN AMBIENT_HEAT=-10 GOAL=ESCAPE 01656_ Searching scrap... 01656_ Found Sub. Power Source. 01656_ Found Sub. Beam Cannon. 01656_ Found 38 Matter. 01657_ Acquired 10 matter. 01659_ Acquired Sub. Beam Cannon. 01664_ Subatomizers dissect the Sub. Power Source. 01730_ 4M-J8Y(R): "ARGHSUB!" 01735_ 4M-J8Y(R) destroyed. 01874_ Wheel destroyed. 01878_ Beam Cannon destroyed. Map ----- +----------------------------------------------------+ | ?????????????????????????????????????????????????? | | ?????????????????????????????????????????????????? | | ?????????????????????????????????????????????????? | | ?????????????????????????????????????????????????? | | ?????????????????????????????????????????????????? | | ?????????????????????????????????????????????????? | | ?????????????????????????????????????????????????? | | ?????????????????????????????????????????????????? | | ?????????????????????????????????????????????????? | | ?????????????????????????????????????????????????? | | ?????????????????????????????????????????????????? | | ?????????????????????????????????????????????????? | | ?????????????????????????????????????????????????? | | ?????????????????????????????????????????????????? | | ?????????????????????????????????????????????????? | | ?????????????????????????????????????????????????? | | ????????????????????????????????##?#?????????????? | | ???????????????????????????????# # ??????????????? | | ??????????????????????????? " ???????????????? | | ?????????????????????????? ????????????????? | | ?????????????????????????? #?????????????????? | | ??????????????????????????# ##?????????????????? | | ??????????????????????????# "#?????????????????? | | ?????????????????????###### "#?????????????????? | | ???????????????????### R ""####??????????????? | | ??????????????????## @##"" #??????????????? | | ?????????????????## R###""""" ?????????????? | | ?????????????????# ### """#????????????????? | | ?????????????????## ## #????????????????? | | ????????????????### #????????????????? | | ????????????????# ##????????????????? | | ???????????? ## #?????????????????? | | ?????????? ?## #?????????????????? | | ??????????? ???# #?????????????????? | | ?????????? ???# ## #???##????????????? | | ??????????? #### ???## ## #??# #### ##?????? | | ??????????? ????##???# ### #?????? | | ?????????????????????# #?????? | | ?????????????????????## ## #?????? | | ??????????????????????##### ## #??????? | | ???????????????????????##### #???????? | | ???????????????????????# ## ##???????? | | ???????????????????????# #????????? | | ???????????????????????# #???????? | | ???????????????????????# ## #??????? | | ???????????????????????# ### #??????? | | ???????????????????????# ### ### #??????? | | ???????????????????????# # # ##???##??????? | | ???????????????????# ## # ##????????????? | | ?????????????????# #?# # #?????????????? | +----------------------------------------------------+ Best States ------------- Heat Dissipation 39 Energy Generation 10 Energy Capacity 250 Matter Stores 300 Matter Capacity 300 Sight Range 16 Terrain Scan Density 10 Evasion (%) 41 Recoil Reduction 2 Item Schematics ----------------- Cargo Storage Unit | -10/Materials | Hacked Robot Schematics ------------------ None Fabricated ------------ Nothing Alien Tech Used ----------------- None Achievements -------------- None Challenges ------------ None Game ------ Seed SegregatorAuthchipRefractor Manual? 0 Play Time 00:09:01 Cumulative 110.7 hours Start 2024.04.19 @ 11:43:46 End 2024.04.19 @ 11:51:39 Sessions 1 Manual Loads 0 Difficulty Rogue Special Mode None Game No. 134 Rogue 134 Adventurer 0 Explorer 0 Win Type - Total 1 Types 1/0/0/0/0/0/0/0/0 Lore% 48 Gallery% 52 Achievement% 49 Wizard Run 0 Options --------- Layout 1 ASCII 0 Keyboard 0 Movement Mouse Keybinds 0 Fullscreen 2 Font 32/Smallcaps Map View 50x40 Zoom Use 0% Tactical HUD 1 Map Filters NONE Filters NONE Steam 1 RUN: a3cae262-0893-430e-aed9-e158c2db40cb